[Event "Cairns Cup 2024"]
[Site "Saint Louis"]
[Date "2024.06.16"]
[Round "4.1"]
[White "Paehtz, Elisabeth"]
[Black "Muzychuk, Mariya"]
[Result "1/2-1/2"]
[ECO "A11"]
[WhiteElo "2457"]
[BlackElo "2510"]
[Annotator "TA"]
[PlyCount "116"]
[EventDate "2024.06.13"]
[EventType "tourn"]
[EventCountry "USA"]
[SourceTitle "playchess.com"]
[Source "ChessBase"]
[SourceQuality "1"]
[TimeControl "40/5400+30:1800+30"]

{[%evp 53,116,-43,-43,-55,-22,-56,-37,-20,-18,-27,0,0,0,0,0,0,8,10,10,8,21,0,8,10,88,88,90,93,144,90,132,0,103,112,250,0,0,-54,127,16,170,4,178,133,135,135,128,150,133,0,0,0,0,0,0,0,0,0,0,0,0,0,0,0,0]} 1. Nf3 {[%emt 0:00:00]} d5 {[%emt 0:00:00]} 2. g3 {[%emt 0:00:00]} g6 {[%emt 0:00:00]} 3. c4 {[%emt 0:00:00]} c6 {[%emt 0:00:00]} 4. Qa4 {[%emt 0:00:00]} d4 {[%emt 0:00:00]} 5. Bg2 {[%emt 0:00:00]} Bg7 {[%emt 0:00:00]} 6. O-O {[%emt 0:00:00] A11: English Opening: 1...c6.} e5 {[%emt 0:00:00]} 7. d3 {[%emt 0:00:00]} Ne7 {[%emt 0:00:00]} 8. e3 {[%emt 0:00:00]} dxe3 {[%emt 0:00:00]} 9. fxe3 $146 {[%emt 0:00:00]} ({Predecessor:} 9. Bxe3 O-O 10. Nc3 Nf5 11. Bc5 Re8 12. Rfe1 b6 13. Ba3 Bb7 14. c5 b5 15. Qe4 {1-0 Zeng,C (2535)-Xiang,Z (2313) CHN-ch rapid 2019 (1)}) 9... O-O {[%emt 0:00:00]} 10. Nc3 {[%emt 0:06:36]} Na6 {[%emt 0:00:00]} 11. Qa3 {[%emt 0:03:55]} c5 {[%emt 0:00:41]} 12. Qb3 {[%emt 0:02:29]} Nb4 {[%emt 0:07:28]} 13. Ne1 {[%emt 0:08:47]} Rb8 {[%emt 0:05:19]} 14. Qd1 {[%emt 0:23:32]} Be6 {[%emt 0:05:35]} 15. a3 {[%emt 0:03:42]} Nbc6 {[%emt 0:00:15]} 16. e4 {[%emt 0:09:04]} Nd4 {[%emt 0:03:38]} 17. Nd5 {[%emt 0:00:09]} Nxd5 {[%emt 0:01:28]} 18. cxd5 {[%emt 0:00:57]} Bd7 {[%emt 0:00:06]} 19. Be3 {[%emt 0:07:24]} b5 {[%emt 0:02:14]} 20. Nc2 {[%emt 0:00:58]} Nb3 {[%emt 0:16:15]} 21. Rb1 {[%emt 0:00:04]} Rc8 {[%emt 0:07:15]} 22. Na1 {[%emt 0:00:21]} Nd4 {[%emt 0:00:29]} 23. Nc2 {[%emt 0:00:20]} Qb6 {[%emt 0:08:04]} 24. Qd2 {[%emt 0:06:38]} a5 {[%emt 0:02:57]} 25. b3 {[%emt 0:04:38]} Rc7 {[%emt 0:02:29]} 26. Bf2 {[%emt 0:01:06]} h5 {[%emt 0:03:45]} 27. Rfc1 {[%emt 0:01:24]} Kh7 {[%emt 0:03:32]} 28. Nxd4 {[%emt 0:01:19]} exd4 {[%emt 0:00:47]} 29. Rf1 {[%emt 0:00:07]} Be5 {[%emt 0:02:02]} 30. Be1 {[%emt 0:00:07]} Ra7 {[%emt 0:00:37]} 31. Qc2 {[%emt 0:03:41]} Qd6 {[%emt 0:08:21]} 32. Rc1 {[%emt 0:00:42]} b4 {[%emt 0:09:10]} 33. a4 {[%emt 0:00:04]} Rc7 {[%emt 0:00:33]} 34. Bd2 {[%emt 0:00:12]} h4 {[%emt 0:02:05]} 35. Bf4 {[%emt 0:00:40]} hxg3 {[%emt 0:00:09]} 36. hxg3 {[%emt 0:00:07]} f6 {[%emt 0:00:15]} 37. Bh3 {[%emt 0:05:57]} Bxh3 {[%emt 0:02:54]} 38. Qh2 {[%emt 0:00:04]} Kg7 {[%emt 0:01:45]} (38... Bxf4 39. Rxf4 f5 40. Qxh3+ Kg8 41. Rh4 $18 (41. exf5 Rh7 $11)) (38... Kg8 $11 39. Qxh3 f5 (39... Rh7 40. Bxe5 Qxe5 41. Qg4 $16)) 39. Qxh3 $16 {[%emt 0:00:22]} Rh8 {[%emt 0:00:12]} 40. Qg4 {[%emt 0:01:32]} Rh5 {[%emt 0:00:27]} (40... Rf7 $142) 41. Rc2 {[%emt 0:35:46]} (41. Rf3 $142) 41... Rf7 $16 {[%emt 0:32:15]} 42. Rcf2 {[%emt 0:01:53]} (42. Bxe5 $16 Qxe5 43. Qf4 (43. Rxc5 Rg5 $15)) 42... Rf8 {[%emt 0:03:10]} (42... f5 $11 {remains equal.} 43. Bxe5+ Qxe5) 43. Bxe5 $1 $16 {[%emt 0:00:38]} Rxe5 {[%emt 0:00:06] [#]} (43... Qxe5 $16 {was worth a try.} 44. Rf5 Rxf5 45. Rxf5 Qd6) 44. Rf5 $2 {[%emt 0:01:00]} (44. Qf4 $1 $18) 44... Rxf5 $11 {[%emt 0:01:31]} 45. Rxf5 {[%emt 0:00:18]} (45. exf5 $11 g5 46. Re1 Qxd5 47. Re7+ Rf7 48. Re6) 45... Re8 $2 {[%emt 0:00:40]} (45... Qd7 $1 $15 {keeps the upper hand.}) 46. Rf4 {[%emt 0:01:36]} ({Better is} 46. Rf1 $16) 46... Re7 $2 {[%emt 0:01:29]} (46... Re5 $11 {and Black has nothing to worry.}) 47. Kf2 $2 {[%emt 0:01:42]} (47. Rf2 $18) 47... Rc7 $2 {[%emt 0:00:15]} (47... c4 $1 $11 48. dxc4 d3) 48. Rf3 {[%emt 0:01:03]} Rf7 {[%emt 0:01:47]} 49. Qf4 {[%emt 0:00:14]} Qe7 {[%emt 0:00:33]} 50. g4 {[%emt 0:01:16]} Qe5 {[%emt 0:00:54] [#]} 51. Qxe5 {[%emt 0:01:11]} ({White should try} 51. Kg2 $1 $16) 51... fxe5 $11 {[%emt 0:00:03]} 52. Rxf7+ {[%emt 0:00:04]} Kxf7 {[%emt 0:00:03]} 53. g5 {[%emt 0:00:16]} Ke7 {[%emt 0:00:03]} 54. Ke2 {[%emt 0:00:07]} Kd6 {[%emt 0:00:02]} 55. Kd2 {[%emt 0:00:06]} Ke7 {[%emt 0:00:02]} 56. Ke2 {[%emt 0:00:04]} Kd6 {[%emt 0:00:01]} 57. Kd2 {[%emt 0:00:04]} Ke7 {[%emt 0:00:02]} 58. Ke2 {[%emt 0:00:05]} Kd6 {[%emt 0:00:10]} 1/2-1/2

[Event "Cairns Cup 2024"]
[Site "Saint Louis"]
[Date "2024.06.16"]
[Round "4.2"]
[White "Tan, Zhongyi"]
[Black "Zatonskih, Anna"]
[Result "1-0"]
[ECO "C13"]
[WhiteElo "2540"]
[BlackElo "2327"]
[Annotator "TA"]
[PlyCount "39"]
[EventDate "2024.06.13"]
[EventType "tourn"]
[EventCountry "USA"]
[SourceTitle "playchess.com"]
[Source "ChessBase"]
[SourceQuality "1"]
[TimeControl "40/5400+30:1800+30"]

{[%evp 17,39,-15,1,-47,-36,-41,-25,-77,-58,-50,-33,-6,10,0,85,92,185,194,29997,29998,29998,29998,29998,29999]} 1. e4 {[%emt 0:00:00]} e6 {[%emt 0:00:00]} 2. d4 {[%emt 0:00:00]} d5 {[%emt 0:00:00]} 3. Nc3 {[%emt 0:00:00]} Nf6 {[%emt 0:00:00]} 4. Bg5 {[%emt 0:00:00]} dxe4 {[%emt 0:00:00]} 5. Nxe4 {[%emt 0:00:00]} Be7 {[%emt 0:00:00]} 6. Bxf6 {[%emt 0:00:00]} Bxf6 {[%emt 0:00:00]} 7. Nf3 {[%emt 0:00:00]} O-O {[%emt 0:00:00]} 8. Nxf6+ {[%emt 0:00:00]} Qxf6 {[%emt 0:00:00]} 9. Bd3 {[%emt 0:00:00] [#]} c5 $1 {[%emt 0:00:00]} 10. dxc5 {[%emt 0:00:00]} (10. c3 $11) (10. Qe2 cxd4) 10... Qxb2 $15 {[%emt 0:03:09]} 11. O-O {[%emt 0:00:00][%cal Bh1f1,Bf1e1,Be1e5][%mdl 32]} Nd7 {[%emt 0:15:26][%cal Og7g6]} 12. Rb1 {[%emt 0:00:00]} (12. Qe2 $11 {remains equal.}) 12... Qxa2 $17 {[%emt 0:12:01]} 13. Rb4 {[%emt 0:00:00]} Qd5 {[%emt 0:10:16]} (13... Nxc5 $2 14. Bxh7+ Kh8 15. Rh4 $18) 14. Re1 {[%emt 0:00:00]} h6 {[%emt 0:16:20]} (14... Nxc5 15. Re5 Qc6 16. Bxh7+ Kxh7 17. Rh5+ Kg8 18. Ne5 $18 (18. Rbh4 f6 $11)) 15. Qd2 {[%emt 0:00:00]} Nxc5 {[%emt 0:11:34] [#]} (15... Re8 $11) 16. Re5 $1 $16 {[%emt 0:14:37] And now Rg4 would win. White is more active.} Qc6 {[%emt 0:01:13]} (16... Nxd3 $16 {was worth a try.} 17. Rxd5 Nxb4) 17. Rg4 $18 {[%emt 0:21:28]} Nxd3 $2 {[%emt 0:01:02]} (17... f5 $18 18. Qxh6 Rf7 (18... fxg4 $2 {is the wrong capture.} 19. Rg5 $18) 19. Rxc5 Qxc5) 18. Qxh6 $1 {[%emt 0:01:50][%csl Gh6][%cal Rg4g7] White mates.} g6 {[%emt 0:02:07]} 19. Rxg6+ {[%emt 0:00:09]} fxg6 {[%emt 0:00:03]} 20. Qxg6+ {[%emt 0:00:06] Weighted Error Value: White=0.08 (flawless) /Black=0.81.  Mistake:       	White=1     	Black=3      OK:         	White=2     	Black=2      Best:        	White=1     	Black=1      Strong:       	White=2     	---} 1-0

[Event "Cairns Cup 2024"]
[Site "Saint Louis"]
[Date "2024.06.16"]
[Round "4.3"]
[White "Dzagnidze, Nana"]
[Black "Muzychuk, Anna"]
[Result "1/2-1/2"]
[ECO "D35"]
[WhiteElo "2506"]
[BlackElo "2505"]
[Annotator "TA"]
[PlyCount "198"]
[EventDate "2024.06.13"]
[EventType "tourn"]
[EventCountry "USA"]
[SourceTitle "playchess.com"]
[Source "ChessBase"]
[SourceQuality "1"]
[TimeControl "40/5400+30:1800+30"]

{[%evp 20,198,0,0,0,0,0,0,0,0,0,0,0,0,7,0,13,13,18,0,17,0,23,17,41,32,48,54,41,30,36,36,27,22,32,21,53,12,48,0,18,23,26,20,83,51,52,0,75,85,62,8,9,0,0,0,44,37,39,43,57,0,0,0,0,0,46,44,68,46,90,73,196,118,185,197,183,129,239,92,106,46,116,58,52,52,212,0,39,0,0,0,358,0,0,0,8,0,213,0,0,0,0,0,0,0,0,0,0,0,0,0,0,0,564,0,564,564,556,556,571,571,893,570,29942,29943,29944,556,556,556,556,556,556,556,556,556,556,556,556,556,556,556,556,556,556,555,555,555,570,0,0,0,0,0,0,0,0,0,0,0,0,0,0,0,0,0,0,0,0,0,0,0,0,0,0,0,0,0,0,0,0]} 1. d4 {[%emt 0:00:00]} d5 {[%emt 0:00:00]} 2. c4 {[%emt 0:00:00]} e6 {[%emt 0:00:00]} 3. Nc3 {[%emt 0:00:00]} c6 {[%emt 0:00:00]} 4. cxd5 {[%emt 0:00:00]} exd5 {[%emt 0:00:00]} 5. Bf4 {[%emt 0:00:00]} Nf6 {[%emt 0:00:00]} 6. e3 {[%emt 0:00:00]} Bf5 {[%emt 0:00:00]} 7. Bd3 {[%emt 0:00:00]} Bxd3 {[%emt 0:00:00]} 8. Qxd3 {[%emt 0:00:00]} Nbd7 {[%emt 0:00:00]} 9. h3 {[%emt 0:00:00]} Be7 {[%emt 0:00:00]} 10. Nf3 {[%emt 0:00:00]} O-O {[%emt 0:00:00]} 11. O-O {[%emt 0:00:00]} a5 {[%emt 0:00:00]} 12. Rac1 {[%emt 0:03:57]} Re8 {[%emt 0:00:00]} 13. Rfd1 {[%emt 0:01:53]} Nb6 {[%emt 0:00:00]} 14. Qc2 {[%emt 0:06:55]} Bd6 {[%emt 0:05:30]} 15. Bxd6 {[%emt 0:07:09]} Qxd6 {[%emt 0:00:01]} 16. Ne5 {[%emt 0:00:12]} Nfd7 {[%emt 0:08:00]} 17. Nd3 {[%emt 0:05:11]} a4 {[%emt 0:09:08]} 18. Re1 {[%emt 0:07:38]} h6 {[%emt 0:05:41]} 19. Rcd1 {[%emt 0:01:24]} Qg6 {[%emt 0:09:13]} 20. Re2 {[%emt 0:05:12]} Ra5 {[%emt 0:06:35]} 21. Rde1 {[%emt 0:03:25]} Rea8 {[%emt 0:03:16]} 22. e4 {[%emt 0:03:50]} dxe4 {[%emt 0:00:46]} 23. Nxe4 {[%emt 0:09:35]} Nd5 {[%emt 0:03:24] Prevents Re3} 24. Nec5 {[%emt 0:00:32]} Nxc5 {[%emt 0:03:34]} 25. dxc5 {[%emt 0:00:15]} Rf8 {[%emt 0:06:45]} 26. Qc4 {[%emt 0:08:04]} Qg5 {[%emt 0:14:09]} 27. a3 {[%emt 0:08:47]} Raa8 {[%emt 0:02:03]} 28. Re4 {[%emt 0:05:34]} Rfd8 {[%emt 0:07:27]} 29. Nb4 {[%emt 0:09:20]} (29. g3 $14) 29... Qd2 {[%emt 0:06:31]} 30. R1e2 {[%emt 0:02:34]} Qd1+ {[%emt 0:00:12]} 31. Kh2 {[%emt 0:02:10]} Qb1 {[%emt 0:10:09]} (31... Qb3 $11 {remains equal.}) 32. Nd3 {[%emt 0:03:56]} Qd1 $1 {[%emt 0:00:12]} 33. Nb4 {[%emt 0:00:35]} Qb1 {[%emt 0:00:05]} 34. Re5 {[%emt 0:00:42]} Nxb4 {[%emt 0:02:35]} 35. axb4 {[%emt 0:00:17]} (35. Qxb4 $14 Rd1 36. Re8+ Rxe8 37. Rxe8+ Kh7 38. Qxa4) 35... Rd7 $11 {[%emt 0:00:34]} 36. Re7 {[%emt 0:01:40]} Rxe7 {[%emt 0:00:24]} 37. Rxe7 {[%emt 0:00:03][%mdl 4096] Endgame. KQR-KQR} Qf5 {[%emt 0:01:08]} 38. Qd4 $40 {[%emt 0:02:21][%cal Of2f3][%mdl 128] White has some attack.} a3 {[%emt 0:00:09]} 39. bxa3 {[%emt 0:00:16]} (39. Rxb7 $2 a2 40. Re7 a1=Q $19 (40... a1=B $2 41. f4 $19)) 39... Rxa3 {[%emt 0:00:04]} 40. Rxb7 {[%emt 0:03:05]} (40. f3 $1 $14) 40... Rd3 {[%emt 0:00:01]} 41. Qg4 {[%emt 0:31:20]} Qe5+ {[%emt 0:31:31]} 42. f4 {[%emt 0:01:58]} (42. g3 $5 Qd5 $8 43. Re7 $11) 42... Qd5 {[%emt 0:00:38]} (42... Qf6 $1 $11) 43. Re7 $14 {[%emt 0:00:28]} Rd2 {[%emt 0:01:26]} 44. Re2 {[%emt 0:01:16]} Rxe2 {[%emt 0:00:35]} 45. Qxe2 {[%emt 0:00:03] KQ-KQ} Qd4 {[%emt 0:00:18]} (45... g6 $16) 46. Qe8+ $18 {[%emt 0:00:09]} Kh7 {[%emt 0:00:00]} 47. Qxf7 {[%emt 0:00:13]} (47. Qxc6 $6 Qxf4+ 48. Kg1 Qxb4 $14) 47... Qxb4 {[%emt 0:00:01]} 48. Qf5+ {[%emt 0:00:25]} Kh8 {[%emt 0:00:04]} (48... Kg8 $16 49. Qe5 Kh7) 49. Qe5 {[%emt 0:00:13]} (49. Qc8+ $1 $18 {is the precise move to win.} Kh7 50. Qxc6 Qxf4+ 51. Kg1) 49... Kh7 $16 {[%emt 0:00:28]} 50. h4 {[%emt 0:02:01]} (50. Kg3 $16 {And now Qf5+ would win.} Qb1 51. Qe6) 50... Qc4 {[%emt 0:00:29]} (50... Qa4 $14) 51. h5 {[%emt 0:00:22]} ({White should play} 51. Qf5+ $16 Kh8 52. Qc8+ Kh7 53. Qxc6 Qxf4+ 54. Kh3) 51... Qf7 {[%emt 0:00:48]} 52. Qe4+ {[%emt 0:00:24]} Kh8 $2 {[%emt 0:00:19]} ({Black should try} 52... Kg8 $14) 53. Qe5 $2 {[%emt 0:00:21]} (53. Qxc6 Qxf4+ 54. Kh3 Qf5+ 55. Kg3 Qxh5 $14) (53. Kg3 $18 Qb3+ 54. Kh4) 53... Qd7 {[%emt 0:00:21]} 54. Kg3 {[%emt 0:01:00]} Qd3+ {[%emt 0:00:15]} 55. Kg4 {[%emt 0:00:28] Strongly threatening Qe8+.} Qd1+ $2 {[%emt 0:00:04][%mdl 8192]} (55... Qd7+ $1 $11 56. Kg3 Qd3+ 57. Kh2 Qd8) 56. Kh3 $2 {[%emt 0:00:13]} (56. Kf5 $1 $18) 56... Qd3+ $11 {[%emt 0:00:17]} 57. Kh2 {[%emt 0:00:08]} Qd7 {[%emt 0:00:08] Prevents Qe8+} 58. Qe4 {[%emt 0:00:44]} Qg4 $2 {[%emt 0:00:15] [#] Against f5} (58... Qf7 $1 $11) 59. Qe8+ $2 {[%emt 0:00:32]} (59. Qxc6 Qh4+ 60. Kg1 Qe1+ 61. Kh2 Qh4+ 62. Kg1 Qe1+ 63. Kh2 Qh4+ $11) (59. Kg1 $1 $18) 59... Kh7 {[%emt 0:00:01]} 60. Qe5 {[%emt 0:00:20]} Kh8 {[%emt 0:01:17]} 61. Kg1 {[%emt 0:00:36] Hoping for Qe8+.} Qd1+ $1 {[%emt 0:00:16]} 62. Kf2 {[%emt 0:00:02] Qe8+ is the strong threat.} Qd2+ {[%emt 0:00:12]} 63. Kg3 {[%emt 0:00:15]} Qd3+ {[%emt 0:00:09]} 64. Kh4 {[%emt 0:00:16]} Qd8+ {[%emt 0:00:11]} 65. Kh3 {[%emt 0:00:05] Black must now prevent Qe4.} Qd3+ {[%emt 0:00:14]} 66. g3 {[%emt 0:01:18]} Qf1+ $2 {[%emt 0:00:09][%mdl 8192]} (66... Qf3 $11) 67. Kh4 $2 {[%emt 0:00:17]} ({Only move:} 67. Kg4 $18) 67... Qh1+ $2 {[%emt 0:00:05][%mdl 8192]} (67... Qf3 $1 $11 {and Black has nothing to worry.}) 68. Kg4 $18 {[%emt 0:00:03]} Qd1+ {[%emt 0:00:05]} 69. Kf5 {[%emt 0:00:56]} Qxh5+ {[%emt 0:00:09] [#]} 70. Ke6 $1 {[%emt 0:00:06]} (70. Ke4 Qd1 $11) 70... Qg6+ {[%emt 0:00:50]} 71. Kd7 {[%emt 0:00:11]} Qxg3 {[%emt 0:00:19]} 72. Kxc6 {[%emt 0:00:28]} Qf3+ {[%emt 0:04:33]} 73. Kb6 {[%emt 0:00:43]} (73. Kc7 $142 Kg8 74. c6 Kf7 75. f5 Qh5 76. Qe6+ Kf8 77. Kd7 Qf7+ 78. Kd8 (78. Qxf7+ Kxf7 79. c7 Kf6 80. c8=Q Kxf5 81. Kd6+ Kf4 82. Kd5 h5)) 73... Qb3+ {[%emt 0:00:52]} 74. Kc7 {[%emt 0:00:07]} Qf7+ {[%emt 0:00:06]} 75. Kd8 {[%emt 0:00:06] Intending Qe8+ and mate.} Qb7 {[%emt 0:01:26]} 76. Qd6 {[%emt 0:02:27] c6 would kill now.} Qa8+ {[%emt 0:00:12]} 77. Ke7 {[%emt 0:00:47] White threatens c6 and mate.} Qb7+ {[%emt 0:00:22]} 78. Qd7 {[%emt 0:00:54]} (78. Kd8 Qa8+ 79. Kd7 Qb7+ 80. Qc7 (80. Kd8 Qa8+ $16) 80... Qd5+ 81. Ke7 (81. Qd6 Qb7+ 82. Qc7 Qd5+ 83. Ke7 Qe4+ 84. Qe5 Qb7+ 85. Kd6 Qb8+ 86. Kc6 Qa7 $18) 81... Qe4+ 82. Qe5 Qb7+ 83. Kd6 Qb8+ 84. Kc6 Qa7 $18) 78... Qe4+ {[%emt 0:00:16]} 79. Kd8 {[%emt 0:00:23] White wants to mate with Qe8+.} Qxf4 {[%emt 0:00:38]} 80. c6 {[%emt 0:00:17]} Qb8+ {[%emt 0:00:20]} 81. Ke7 {[%emt 0:00:34] Threatening mate with Qe8+.} Qe5+ {[%emt 0:00:13]} 82. Qe6 {[%emt 0:00:05]} Qc7+ {[%emt 0:00:32]} 83. Ke8 {[%emt 0:00:33]} h5 {[%emt 0:00:44]} 84. Qd5 $2 {[%emt 0:00:56]} (84. Kf8 $18 {[%csl Gf8][%cal Re6g8]} Kh7 85. Qf5+ Kh6 86. Qd7 Qf4+ 87. Ke8 Qe4+ 88. Kd8 Qh4+ 89. Kc8) 84... h4 $1 $11 {[%emt 0:00:34] The position is equal.} 85. Qh5+ {[%emt 0:00:40]} Kg8 {[%emt 0:00:01]} 86. Qd5+ {[%emt 0:00:06]} (86. Qxh4 $2 {loses.} Qxc6+ 87. Ke7 Qd5 $19) 86... Kh8 {[%emt 0:00:02]} 87. Kf8 {[%emt 0:01:07][%cal Rd5h5]} Qf4+ {[%emt 0:01:27]} 88. Ke7 {[%emt 0:00:05]} Qc7+ {[%emt 0:00:44]} 89. Kf8 {[%emt 0:00:43][%cal Rd5h5]} Qf4+ {[%emt 0:00:05]} 90. Ke7 {[%emt 0:00:12]} Qc7+ {[%emt 0:00:03]} 91. Ke6 {[%emt 0:00:50]} h3 {[%emt 0:01:35]} 92. Qd7 {[%emt 0:00:07]} Qb6 {[%emt 0:00:44]} 93. Qe8+ {[%emt 0:00:33]} Kh7 {[%emt 0:00:01] ...Qb5 would now be deadly.} 94. Qh5+ {[%emt 0:00:14]} Kg8 {[%emt 0:00:00]} 95. Qd5 {[%emt 0:01:07] aiming for Kd7+.} Qc7 {[%emt 0:01:34]} 96. Qd7 {[%emt 0:00:19]} Qb6 {[%emt 0:00:17]} 97. Qe8+ {[%emt 0:00:35]} Kh7 {[%emt 0:00:01]} 98. Qh5+ {[%emt 0:00:11]} Kg8 {[%emt 0:00:01]} 99. Qe8+ {[%emt 0:00:49]} Kh7 {[%emt 0:00:16] Blacks defense is rewarded with a draw.   Weighted Error Value: White=0.32/Black=0.38.  Loses game:     	---       	Black=4      Missed win:     	White=5     	---        Mistake:       	White=6     	Black=6      Inaccurate:     	White=3     	Black=8      OK:         	White=24    	Black=25     Best:        	White=7     	Black=10     Strong:       	White=1     	Black=3} 1/2-1/2

[Event "Cairns Cup 2024"]
[Site "Saint Louis"]
[Date "2024.06.16"]
[Round "4.4"]
[White "Dronavalli, Harika"]
[Black "Krush, Irina"]
[Result "1/2-1/2"]
[ECO "B33"]
[WhiteElo "2489"]
[BlackElo "2415"]
[Annotator "TA"]
[PlyCount "112"]
[EventDate "2024.06.13"]
[EventType "tourn"]
[EventCountry "USA"]
[SourceTitle "playchess.com"]
[Source "ChessBase"]
[SourceQuality "1"]
[TimeControl "40/5400+30:1800+30"]

{[%evp 23,112,24,31,-24,25,25,43,60,58,55,61,59,63,58,58,64,65,67,58,60,75,81,89,93,89,79,81,88,80,60,74,24,31,23,22,25,26,25,36,20,22,8,8,8,8,0,22,8,29,29,23,19,34,8,34,34,34,34,40,40,40,40,40,40,40,40,40,40,40,40,40,40,40,40,40,40,40,40,40,40,40,40,40,0,40,0,40,0,40,0,40]} 1. e4 {[%emt 0:00:00]} c5 {[%emt 0:00:00]} 2. Nf3 {[%emt 0:00:00][%cal Bg1f3,Bf3d4,Bd4b5,Bb5a3,Ba3c2][%mdl 32]} Nc6 {[%emt 0:00:00]} 3. d4 {[%emt 0:00:00]} cxd4 {[%emt 0:00:00]} 4. Nxd4 {[%emt 0:00:00]} Nf6 {[%emt 0:00:00]} 5. Nc3 {[%emt 0:00:00]} e5 {[%emt 0:00:00]} 6. Ndb5 {[%emt 0:00:00]} d6 {[%emt 0:00:00]} 7. Bg5 {[%emt 0:00:00]} a6 {[%emt 0:00:00]} 8. Na3 {[%emt 0:00:00]} b5 {[%emt 0:00:00]} 9. Nd5 {[%emt 0:00:00]} Be7 {[%emt 0:00:00]} 10. Bxf6 {[%emt 0:00:00]} Bxf6 {[%emt 0:00:00]} 11. c3 {[%emt 0:00:00]} Rb8 {[%emt 0:00:00]} 12. Nc2 {[%emt 0:00:00]} Bg5 {[%emt 0:00:00] [#]} 13. h4 {[%emt 0:00:00]} Bh6 {[%emt 0:00:00]} (13... Bxh4 {might be stronger.} 14. a4 Bg5) 14. a4 {[%emt 0:00:00]} O-O {[%emt 0:00:00]} 15. axb5 {[%emt 0:00:00] White is slightly better.} axb5 {[%emt 0:00:00]} 16. g3 {[%emt 0:00:00]} g6 {[%emt 0:00:00]} 17. Bg2 {[%emt 0:03:08]} Bb7 {[%emt 0:09:32]} 18. Qd3 {[%emt 0:32:21]} Ne7 {[%emt 0:09:05]} 19. Nxe7+ {[%emt 0:03:35]} (19. Qxb5 $2 Bxd5 20. Qd3 Bb3 $19) 19... Qxe7 {[%emt 0:00:11]} 20. O-O {[%emt 0:00:16]} (20. Qxb5 $2 {loses.} Bxe4 $19) 20... Rfc8 {[%emt 0:21:58]} 21. Nb4 {[%emt 0:01:18][%cal Oa1a5]} (21. Qxb5 $2 {is the wrong capture.} Bxe4 $19) 21... Rc5 {[%emt 0:13:03]} 22. Ra5 {[%emt 0:12:01]} Qd8 {[%emt 0:07:26]} 23. Rfa1 {[%emt 0:03:09]} Bf8 {[%emt 0:02:07]} 24. Qd1 {[%emt 0:04:46]} Ra8 {[%emt 0:07:33]} 25. Rxa8 {[%emt 0:04:35]} Bxa8 {[%emt 0:00:02] Black is weak on the light squares} 26. Ra7 {[%emt 0:00:57]} Rc7 {[%emt 0:04:57]} 27. Qa1 {[%emt 0:08:28] White is much more active.} (27. Ra5 $16) 27... Rxa7 $1 $11 {[%emt 0:01:04]} 28. Qxa7 {[%emt 0:00:05]} d5 {[%emt 0:04:24]} 29. Nxd5 {[%emt 0:00:39]} Bxd5 {[%emt 0:00:05]} 30. exd5 {[%emt 0:00:03][%mdl 4096] Endgame. KQB-KQB} b4 {[%emt 0:00:52]} 31. Qb7 {[%emt 0:05:50]} Qa5 {[%emt 0:07:27]} 32. cxb4 {[%emt 0:03:25]} Qxb4 {[%emt 0:01:24]} 33. Qxb4 {[%emt 0:00:39]} Bxb4 {[%emt 0:00:02] KB-KB} 34. g4 {[%emt 0:02:22]} Kf8 {[%emt 0:02:52]} 35. Be4 {[%emt 0:03:33]} Ke7 {[%emt 0:00:36]} 36. Kf1 {[%emt 0:01:21]} Kd6 {[%emt 0:00:17]} 37. Ke2 {[%emt 0:00:10]} h6 {[%emt 0:00:32]} 38. Kd3 {[%emt 0:08:24]} Kc5 {[%emt 0:01:52]} 39. h5 {[%emt 0:01:32]} gxh5 {[%emt 0:00:13]} 40. gxh5 {[%emt 0:00:02]} f5 {[%emt 0:02:54]} 41. Bxf5 {[%emt 0:30:11]} Kxd5 {[%emt 0:30:08]} 42. Be4+ {[%emt 0:00:12]} Kc5 {[%emt 0:00:15]} 43. Bh7 {[%emt 0:00:06]} Be1 {[%emt 0:01:38]} 44. Ke3 {[%emt 0:00:15]} Kd6 {[%emt 0:01:42]} 45. Bg8 {[%emt 0:00:14]} Kc5 {[%emt 0:00:23]} 46. f3 {[%emt 0:00:15]} Bg3 {[%emt 0:00:22]} 47. Kd3 {[%emt 0:00:21]} Kb4 {[%emt 0:00:32]} 48. Ke4 {[%emt 0:00:15]} Bf4 {[%emt 0:00:20]} 49. b3 {[%emt 0:00:05]} Kc5 {[%emt 0:00:11]} 50. Kd3 {[%emt 0:00:05]} Kb4 {[%emt 0:00:06]} 51. Bf7 {[%emt 0:00:06]} Bg5 {[%emt 0:00:24]} 52. Ke4 {[%emt 0:00:09]} Bf4 {[%emt 0:00:06]} 53. Kd3 {[%emt 0:00:04]} Bg5 {[%emt 0:00:07]} 54. Ke4 {[%emt 0:00:04]} Bf4 {[%emt 0:00:07]} 55. Kd3 {[%emt 0:00:03]} Bg5 {[%emt 0:00:08]} 56. Ke4 {[%emt 0:00:03]} Bf4 {[%emt 0:00:16] Weighted Error Value: White=0.10 (very precise) /Black=0.05 (flawless) .  Mistake:       	White=1     	Black=1      Inaccurate:     	White=1     	Black=1      OK:         	White=12    	Black=15     Best:        	---       	Black=2      Strong:       	---       	Black=1} 1/2-1/2